[Event "Titled Tuesday Blitz May 24 Late 2022"]
[White "Krallis, Christos"]
[Black "Kosteniuk, Alexandra"]
[WhiteFideId "4298896"]
[BlackFideId "4128125"]
[WhiteElo "2234"]
[BlackElo "2469"]
[Result "0-1"]
[Round "05"]
[TimeControl "180+1"]
[Date "2022.05.25"]
[WhiteClock "0:00:03"]
[BlackClock "0:00:29"]

1. d4 {[%clk 0:03:00]}  Nf6 {[%clk 0:02:59]} 2. c4 {[%clk 0:02:59]}  e6 {[%clk 0:03:00]} 3. Nf3 {[%clk 0:02:59]}  d5 {[%clk 0:03:00]} 4. g3 {[%clk 0:02:57]}  dxc4 {[%clk 0:02:59]} 5. Bg2 {[%clk 0:02:55]}  Nc6 {[%clk 0:02:59]} 6. O-O {[%clk 0:02:55]}  Rb8 {[%clk 0:02:59]} 7. e3 {[%clk 0:02:55]}  b5 {[%clk 0:02:47]} 8. Qe2 {[%clk 0:02:54]}  Nb4 {[%clk 0:02:45]} 9. Ne5 {[%clk 0:02:51]}  Bb7 {[%clk 0:02:42]} 10. Bxb7 {[%clk 0:02:48]}  Rxb7 {[%clk 0:02:42]} 11. b3 {[%clk 0:02:37]}  cxb3 {[%clk 0:02:27]} 12. axb3 {[%clk 0:02:36]}  Bd6 {[%clk 0:02:27]} 13. Bd2 {[%clk 0:02:22]}  O-O {[%clk 0:02:18]} 14. Bxb4 {[%clk 0:02:06]}  Bxb4 {[%clk 0:02:19]} 15. Nc6 {[%clk 0:02:03]}  Qd6 {[%clk 0:02:19]} 16. Rc1 {[%clk 0:02:02]}  a5 {[%clk 0:02:11]} 17. Nxa5 {[%clk 0:01:15]}  Rb6 {[%clk 0:01:54]} 18. Nc3 {[%clk 0:00:56]}  Bxc3 {[%clk 0:01:45]} 19. Rxc3 {[%clk 0:00:56]}  Ra8 {[%clk 0:01:33]} 20. Rcc1 {[%clk 0:00:31]}  Rba6 {[%clk 0:01:10]} 21. Qxb5 {[%clk 0:00:26]}  Qb6 {[%clk 0:01:10]} 22. Qxb6 {[%clk 0:00:17]}  cxb6 {[%clk 0:01:10]} 23. b4 {[%clk 0:00:17]}  bxa5 {[%clk 0:01:08]} 24. b5 {[%clk 0:00:18]}  Rb6 {[%clk 0:01:02]} 25. Rxa5 {[%clk 0:00:17]}  Rab8 {[%clk 0:01:03]} 26. Rc6 {[%clk 0:00:17]}  h5 {[%clk 0:00:56]} 27. Rxb6 {[%clk 0:00:17]}  Rxb6 {[%clk 0:00:57]} 28. Ra8+ {[%clk 0:00:13]}  Kh7 {[%clk 0:00:57]} 29. Ra7 {[%clk 0:00:14]}  Kg6 {[%clk 0:00:56]} 30. Ra5 {[%clk 0:00:13]}  Ne4 {[%clk 0:00:55]} 31. f3 {[%clk 0:00:12]}  Nc3 {[%clk 0:00:53]} 32. Ra3 {[%clk 0:00:12]}  Nxb5 {[%clk 0:00:50]} 33. Rb3 {[%clk 0:00:12]}  Rb7 {[%clk 0:00:50]} 34. e4 {[%clk 0:00:12]}  Nd6 {[%clk 0:00:51]} 35. Rd3 {[%clk 0:00:13]}  Rb2 {[%clk 0:00:49]} 36. Rc3 {[%clk 0:00:13]}  Nb5 {[%clk 0:00:47]} 37. Rc4 {[%clk 0:00:13]}  Rd2 {[%clk 0:00:46]} 38. d5 {[%clk 0:00:11]}  exd5 {[%clk 0:00:45]} 39. Rc5 {[%clk 0:00:11]}  Nd4 {[%clk 0:00:44]} 40. exd5 {[%clk 0:00:06]}  Nxf3+ {[%clk 0:00:44]} 41. Kf1 {[%clk 0:00:07]}  Nxh2+ {[%clk 0:00:44]} 42. Ke1 {[%clk 0:00:08]}  Nf3+ {[%clk 0:00:44]} 43. Kf1 {[%clk 0:00:08]}  Kf6 {[%clk 0:00:40]} 44. d6 {[%clk 0:00:06]}  Rxd6 {[%clk 0:00:38]} 45. Rxh5 {[%clk 0:00:07]}  g6 {[%clk 0:00:37]} 46. Ra5 {[%clk 0:00:06]}  Ne5 {[%clk 0:00:37]} 47. Kg2 {[%clk 0:00:05]}  Rd3 {[%clk 0:00:37]} 48. Ra6+ {[%clk 0:00:05]}  Kf5 {[%clk 0:00:36]} 49. Ra4 {[%clk 0:00:06]}  g5 {[%clk 0:00:35]} 50. Kh3 {[%clk 0:00:06]}  f6 {[%clk 0:00:34]} 51. Ra8 {[%clk 0:00:05]}  Rd2 {[%clk 0:00:32]} 52. g4+ {[%clk 0:00:02]}  Nxg4 {[%clk 0:00:29]} 53. Ra5+ {[%clk 0:00:03]}  Ne5 {[%clk 0:00:29]} 54. Ra3 {[%clk 0:00:03]}  Rd3+ {[%clk 0:00:29]} 0-1


[Site "https://www.chess.com"]

[Event "Titled Tuesday Blitz May 24 Late 2022"]
[White "Levine, David"]
[Black "Sibilio, Mario"]
[WhiteFideId "2011611"]
[BlackFideId "800422"]
[WhiteElo "2113"]
[BlackElo "2296"]
[Result "1-0"]
[Round "05"]
[TimeControl "180+1"]
[Date "2022.05.25"]
[WhiteClock "0:00:41"]
[BlackClock "0:00:09"]

1. d4 {[%clk 0:03:00]}  Nf6 {[%clk 0:02:58]} 2. c4 {[%clk 0:02:58]}  e6 {[%clk 0:02:58]} 3. g3 {[%clk 0:02:58]}  Bb4+ {[%clk 0:02:53]} 4. Bd2 {[%clk 0:02:57]}  Qe7 {[%clk 0:02:53]} 5. Bg2 {[%clk 0:02:56]}  O-O {[%clk 0:02:53]} 6. Nf3 {[%clk 0:02:56]}  h6 {[%clk 0:02:51]} 7. O-O {[%clk 0:02:56]}  Bxd2 {[%clk 0:02:49]} 8. Nbxd2 {[%clk 0:02:54]}  d6 {[%clk 0:02:48]} 9. e4 {[%clk 0:02:39]}  e5 {[%clk 0:02:47]} 10. d5 {[%clk 0:02:38]}  a5 {[%clk 0:02:38]} 11. Ne1 {[%clk 0:02:38]}  Na6 {[%clk 0:02:25]} 12. Nd3 {[%clk 0:02:37]}  Nd7 {[%clk 0:02:24]} 13. f4 {[%clk 0:02:32]}  Nac5 {[%clk 0:02:22]} 14. Nxc5 {[%clk 0:02:27]}  Nxc5 {[%clk 0:02:21]} 15. Qc2 {[%clk 0:02:23]}  f5 {[%clk 0:01:48]} 16. Rae1 {[%clk 0:02:17]}  fxe4 {[%clk 0:01:39]} 17. fxe5 {[%clk 0:01:57]}  Rxf1+ {[%clk 0:01:35]} 18. Bxf1 {[%clk 0:01:48]}  Qxe5 {[%clk 0:01:32]} 19. Nxe4 {[%clk 0:01:47]}  Bf5 {[%clk 0:01:15]} 20. Bg2 {[%clk 0:01:30]}  Re8 {[%clk 0:01:09]} 21. Nf6+ {[%clk 0:01:12]}  gxf6 {[%clk 0:00:27]} 22. Rxe5 {[%clk 0:01:11]}  Rxe5 {[%clk 0:00:26]} 23. Qd2 {[%clk 0:01:08]}  Kg7 {[%clk 0:00:17]} 24. h3 {[%clk 0:01:03]}  b6 {[%clk 0:00:14]} 25. Qf4 {[%clk 0:01:02]}  Nd3 {[%clk 0:00:12]} 26. Qd2 {[%clk 0:00:56]}  Re1+ {[%clk 0:00:10]} 27. Kh2 {[%clk 0:00:54]}  Rb1 {[%clk 0:00:09]} 28. g4 {[%clk 0:00:41]} 1-0


[Site "https://www.chess.com"]

[Event "Titled Tuesday Blitz May 24 Late 2022"]
[White "Livaic, Leon"]
[Black "Romanchuk, Viktor"]
[WhiteFideId "14531534"]
[BlackFideId "14109271"]
[WhiteElo "2540"]
[BlackElo "2242"]
[Result "1-0"]
[Round "05"]
[TimeControl "180+1"]
[Date "2022.05.24"]
[WhiteClock "0:00:42"]
[BlackClock "0:00:04"]

1. e4 {[%clk 0:03:00]}  e6 {[%clk 0:02:59]} 2. d3 {[%clk 0:03:00]}  d5 {[%clk 0:02:59]} 3. Nd2 {[%clk 0:03:01]}  Nf6 {[%clk 0:02:58]} 4. Ngf3 {[%clk 0:03:01]}  c5 {[%clk 0:02:58]} 5. g3 {[%clk 0:03:01]}  g6 {[%clk 0:02:59]} 6. Bg2 {[%clk 0:03:01]}  Bg7 {[%clk 0:02:59]} 7. h4 {[%clk 0:03:00]}  Nc6 {[%clk 0:02:56]} 8. O-O {[%clk 0:02:59]}  O-O {[%clk 0:02:54]} 9. Re1 {[%clk 0:02:58]}  a5 {[%clk 0:02:51]} 10. a4 {[%clk 0:02:56]}  b6 {[%clk 0:02:49]} 11. c3 {[%clk 0:02:48]}  dxe4 {[%clk 0:02:35]} 12. dxe4 {[%clk 0:02:44]}  Ba6 {[%clk 0:02:33]} 13. e5 {[%clk 0:02:40]}  Ng4 {[%clk 0:02:15]} 14. Ng5 {[%clk 0:01:58]}  Ncxe5 {[%clk 0:01:06]} 15. Bxa8 {[%clk 0:01:56]}  Qxa8 {[%clk 0:01:06]} 16. f3 {[%clk 0:01:57]}  Nh6 {[%clk 0:00:57]} 17. Nde4 {[%clk 0:01:50]}  Nf5 {[%clk 0:00:55]} 18. Bf4 {[%clk 0:01:11]}  Rd8 {[%clk 0:00:50]} 19. Qc2 {[%clk 0:01:03]}  Bd3 {[%clk 0:00:49]} 20. Qg2 {[%clk 0:01:02]}  h6 {[%clk 0:00:36]} 21. Nh3 {[%clk 0:01:01]}  c4 {[%clk 0:00:24]} 22. Nd2 {[%clk 0:00:53]}  Qc6 {[%clk 0:00:18]} 23. Bxe5 {[%clk 0:00:52]}  Bxe5 {[%clk 0:00:11]} 24. Rxe5 {[%clk 0:00:52]}  Qd6 {[%clk 0:00:05]} 25. f4 {[%clk 0:00:45]}  Bc2 {[%clk 0:00:04]} 26. Nxc4 {[%clk 0:00:42]} 1-0


[Site "https://www.chess.com"]

[Event "Titled Tuesday Blitz May 24 Late 2022"]
[White "Lopez Perdomo, Juan David"]
[Black "Veiga, Emerson de Sousa"]
[WhiteFideId "4405137"]
[BlackFideId "2151898"]
[WhiteElo "1997"]
[BlackElo "2034"]
[Result "0-1"]
[Round "05"]
[TimeControl "180+1"]
[Date "2022.05.25"]
[WhiteClock "0:00:20"]
[BlackClock "0:00:09"]

1. e4 {[%clk 0:02:59]}  c5 {[%clk 0:02:59]} 2. d4 {[%clk 0:03:00]}  cxd4 {[%clk 0:02:58]} 3. c3 {[%clk 0:03:00]}  Nf6 {[%clk 0:02:51]} 4. e5 {[%clk 0:03:00]}  Nd5 {[%clk 0:02:51]} 5. Nf3 {[%clk 0:03:01]}  Nc6 {[%clk 0:02:50]} 6. cxd4 {[%clk 0:03:00]}  d6 {[%clk 0:02:50]} 7. exd6 {[%clk 0:03:01]}  Qxd6 {[%clk 0:02:49]} 8. Be2 {[%clk 0:03:01]}  Bg4 {[%clk 0:02:48]} 9. O-O {[%clk 0:03:02]}  e6 {[%clk 0:02:47]} 10. Nc3 {[%clk 0:03:02]}  Rd8 {[%clk 0:02:46]} 11. Bg5 {[%clk 0:03:02]}  Be7 {[%clk 0:02:46]} 12. Bxe7 {[%clk 0:03:02]}  Ndxe7 {[%clk 0:02:44]} 13. Ne4 {[%clk 0:03:02]}  Qd5 {[%clk 0:02:37]} 14. Nc5 {[%clk 0:02:37]}  b6 {[%clk 0:02:35]} 15. Na6 {[%clk 0:02:38]}  O-O {[%clk 0:02:34]} 16. Qa4 {[%clk 0:02:30]}  Bxf3 {[%clk 0:02:31]} 17. Bxf3 {[%clk 0:02:29]}  Qxd4 {[%clk 0:02:32]} 18. Bxc6 {[%clk 0:02:28]}  Nxc6 {[%clk 0:02:23]} 19. Qxc6 {[%clk 0:02:28]}  Qxb2 {[%clk 0:02:18]} 20. Qb7 {[%clk 0:02:22]}  Qa3 {[%clk 0:01:55]} 21. Nc7 {[%clk 0:02:12]}  Rd7 {[%clk 0:01:45]} 22. Qa6 {[%clk 0:01:30]}  Qb4 {[%clk 0:01:24]} 23. Nb5 {[%clk 0:01:19]}  Qc4 {[%clk 0:01:21]} 24. a4 {[%clk 0:01:15]}  h6 {[%clk 0:01:17]} 25. Rac1 {[%clk 0:01:11]}  Qe2 {[%clk 0:01:15]} 26. h3 {[%clk 0:01:00]}  Kh7 {[%clk 0:01:09]} 27. Rc8 {[%clk 0:00:56]}  Rxc8 {[%clk 0:00:56]} 28. Qxc8 {[%clk 0:00:57]}  Rd1 {[%clk 0:00:55]} 29. Rxd1 {[%clk 0:00:53]}  Qxd1+ {[%clk 0:00:56]} 30. Kh2 {[%clk 0:00:52]}  Qxa4 {[%clk 0:00:56]} 31. Nc3 {[%clk 0:00:42]}  Qf4+ {[%clk 0:00:54]} 32. Kg1 {[%clk 0:00:38]}  Qc1+ {[%clk 0:00:54]} 33. Kh2 {[%clk 0:00:39]}  Qf4+ {[%clk 0:00:51]} 34. Kg1 {[%clk 0:00:36]}  Qc1+ {[%clk 0:00:50]} 35. Kh2 {[%clk 0:00:35]}  b5 {[%clk 0:00:43]} 36. Qc6 {[%clk 0:00:30]}  Qf4+ {[%clk 0:00:37]} 37. Kg1 {[%clk 0:00:28]}  b4 {[%clk 0:00:35]} 38. Ne2 {[%clk 0:00:19]}  Qe5 {[%clk 0:00:25]} 39. Qc2+ {[%clk 0:00:18]}  g6 {[%clk 0:00:25]} 40. Qb3 {[%clk 0:00:17]}  Qxe2 {[%clk 0:00:23]} 41. Qxb4 {[%clk 0:00:18]}  Qd1+ {[%clk 0:00:18]} 42. Kh2 {[%clk 0:00:18]}  Qd5 {[%clk 0:00:18]} 43. Qe7 {[%clk 0:00:17]}  Qe5+ {[%clk 0:00:13]} 44. Kg1 {[%clk 0:00:17]}  Qe1+ {[%clk 0:00:09]} 45. Kh2 {[%clk 0:00:18]}  Qxf2 {[%clk 0:00:09]} 46. Qf6 {[%clk 0:00:18]}  Qxf6 {[%clk 0:00:09]} 47. Kg3 {[%clk 0:00:18]}  a5 {[%clk 0:00:08]} 48. Kg4 {[%clk 0:00:18]}  a4 {[%clk 0:00:09]} 49. Kg3 {[%clk 0:00:19]}  a3 {[%clk 0:00:10]} 50. Kg4 {[%clk 0:00:19]}  a2 {[%clk 0:00:11]} 51. g3 {[%clk 0:00:19]}  a1=Q {[%clk 0:00:07]} 52. h4 {[%clk 0:00:20]}  Qad4+ {[%clk 0:00:07]} 53. Kh3 {[%clk 0:00:20]}  Qf5+ {[%clk 0:00:08]} 54. Kg2 {[%clk 0:00:20]}  Qdf2+ {[%clk 0:00:08]} 55. Kh1 {[%clk 0:00:20]}  Qb1# {[%clk 0:00:09]} 0-1


[Site "https://www.chess.com"]

[Event "Titled Tuesday Blitz May 24 Late 2022"]
[White "Lutz, Igor Oscar"]
[Black "Semenenko, Dmytry"]
[WhiteFideId "2110806"]
[BlackFideId "14118645"]
[WhiteElo "1741"]
[BlackElo "2113"]
[Result "0-1"]
[Round "05"]
[TimeControl "180+1"]
[Date "2022.05.25"]
[WhiteClock "0:00:14"]
[BlackClock "0:02:03"]

1. d4 {[%clk 0:03:00]}  d5 {[%clk 0:02:59]} 2. c4 {[%clk 0:03:01]}  c6 {[%clk 0:03:00]} 3. Nf3 {[%clk 0:03:01]}  Nf6 {[%clk 0:03:00]} 4. g3 {[%clk 0:03:01]}  dxc4 {[%clk 0:03:00]} 5. Bg2 {[%clk 0:03:01]}  g6 {[%clk 0:03:01]} 6. O-O {[%clk 0:03:01]}  Bg7 {[%clk 0:03:01]} 7. Nbd2 {[%clk 0:02:58]}  b5 {[%clk 0:03:00]} 8. e4 {[%clk 0:02:57]}  O-O {[%clk 0:02:58]} 9. e5 {[%clk 0:02:57]}  Nd5 {[%clk 0:02:57]} 10. Ne4 {[%clk 0:02:57]}  Nd7 {[%clk 0:02:54]} 11. a4 {[%clk 0:02:45]}  Bb7 {[%clk 0:02:53]} 12. b3 {[%clk 0:02:39]}  c3 {[%clk 0:02:44]} 13. Qc2 {[%clk 0:02:39]}  b4 {[%clk 0:02:43]} 14. h4 {[%clk 0:02:33]}  Qc7 {[%clk 0:02:42]} 15. h5 {[%clk 0:02:19]}  c5 {[%clk 0:02:41]} 16. hxg6 {[%clk 0:01:59]}  hxg6 {[%clk 0:02:41]} 17. dxc5 {[%clk 0:01:49]}  Nxc5 {[%clk 0:02:40]} 18. Nxc5 {[%clk 0:01:41]}  Qxc5 {[%clk 0:02:40]} 19. Ng5 {[%clk 0:01:24]}  Bxe5 {[%clk 0:02:24]} 20. Ne4 {[%clk 0:01:21]}  Qc6 {[%clk 0:02:15]} 21. Bh6 {[%clk 0:00:42]}  Bg7 {[%clk 0:02:15]} 22. Bxg7 {[%clk 0:00:42]}  Kxg7 {[%clk 0:02:15]} 23. Rad1 {[%clk 0:00:27]}  Nf6 {[%clk 0:02:14]} 24. f3 {[%clk 0:00:25]}  Qb6+ {[%clk 0:02:08]} 25. Kh2 {[%clk 0:00:20]}  Rh8+ {[%clk 0:02:08]} 26. Bh3 {[%clk 0:00:19]}  Bxe4 {[%clk 0:02:05]} 27. fxe4 {[%clk 0:00:17]}  Ng4+ {[%clk 0:02:05]} 28. Kh1 {[%clk 0:00:14]}  Rxh3+ {[%clk 0:02:03]} 0-1


[Site "https://www.chess.com"]

[Event "Titled Tuesday Blitz May 24 Late 2022"]
[White "Mahdavi, Reza"]
[Black "Martin Carmona, Gaston Manuel"]
[WhiteFideId "12595926"]
[BlackFideId "22284567"]
[WhiteElo "2253"]
[BlackElo "2162"]
[Result "0-1"]
[Round "05"]
[TimeControl "180+1"]
[Date "2022.05.25"]
[WhiteClock "0:01:37"]
[BlackClock "0:00:10"]

1. e4 {[%clk 0:03:00]}  c5 {[%clk 0:02:59]} 2. Nf3 {[%clk 0:02:55]}  d6 {[%clk 0:03:00]} 3. Bb5+ {[%clk 0:02:53]}  Nd7 {[%clk 0:02:41]} 4. c3 {[%clk 0:02:52]}  Nf6 {[%clk 0:02:35]} 5. Qe2 {[%clk 0:02:49]}  a6 {[%clk 0:02:29]} 6. Ba4 {[%clk 0:02:50]}  b5 {[%clk 0:02:30]} 7. Bc2 {[%clk 0:02:50]}  Bb7 {[%clk 0:02:30]} 8. d4 {[%clk 0:02:51]}  e6 {[%clk 0:02:30]} 9. O-O {[%clk 0:02:51]}  Be7 {[%clk 0:02:27]} 10. Re1 {[%clk 0:02:52]}  Qc7 {[%clk 0:02:26]} 11. Bd3 {[%clk 0:02:51]}  O-O {[%clk 0:02:24]} 12. Nbd2 {[%clk 0:02:52]}  Rfe8 {[%clk 0:02:25]} 13. Nf1 {[%clk 0:02:52]}  e5 {[%clk 0:02:25]} 14. d5 {[%clk 0:02:50]}  c4 {[%clk 0:02:25]} 15. Bc2 {[%clk 0:02:50]}  a5 {[%clk 0:02:26]} 16. Ng3 {[%clk 0:02:51]}  g6 {[%clk 0:02:23]} 17. Bh6 {[%clk 0:02:49]}  Nc5 {[%clk 0:02:20]} 18. Nh4 {[%clk 0:02:47]}  Bc8 {[%clk 0:02:19]} 19. Nf3 {[%clk 0:02:37]}  Bd7 {[%clk 0:02:16]} 20. h3 {[%clk 0:02:37]}  Rec8 {[%clk 0:01:54]} 21. Nh2 {[%clk 0:02:36]}  Ne8 {[%clk 0:01:49]} 22. Rf1 {[%clk 0:02:34]}  f6 {[%clk 0:01:46]} 23. f4 {[%clk 0:02:31]}  Ng7 {[%clk 0:01:22]} 24. f5 {[%clk 0:02:28]}  Na4 {[%clk 0:01:01]} 25. Ng4 {[%clk 0:02:21]}  Rf8 {[%clk 0:00:58]} 26. Rf2 {[%clk 0:02:19]}  Nxb2 {[%clk 0:00:57]} 27. Raf1 {[%clk 0:02:19]}  Nd3 {[%clk 0:00:57]} 28. Bxd3 {[%clk 0:02:13]}  cxd3 {[%clk 0:00:58]} 29. Qxd3 {[%clk 0:02:14]}  gxf5 {[%clk 0:00:58]} 30. Bxg7 {[%clk 0:02:12]}  Kxg7 {[%clk 0:00:57]} 31. Nxf5+ {[%clk 0:02:12]}  Bxf5 {[%clk 0:00:56]} 32. Rxf5 {[%clk 0:02:13]}  Rac8 {[%clk 0:00:46]} 33. Qg3 {[%clk 0:02:10]}  Kh8 {[%clk 0:00:46]} 34. Rh5 {[%clk 0:02:03]}  Qxc3 {[%clk 0:00:35]} 35. Qh4 {[%clk 0:02:01]}  Rf7 {[%clk 0:00:35]} 36. Nh6 {[%clk 0:01:58]}  Rg7 {[%clk 0:00:10]} 37. Nf5 {[%clk 0:01:57]}  Rf7 {[%clk 0:00:10]} 38. Nxe7 {[%clk 0:01:57]}  Rxe7 {[%clk 0:00:11]} 39. Qxf6+ {[%clk 0:01:56]}  Rg7 {[%clk 0:00:12]} 40. Qxd6 {[%clk 0:01:47]}  Rcg8 {[%clk 0:00:11]} 41. Qf6 {[%clk 0:01:44]}  Qe3+ {[%clk 0:00:11]} 42. Kh1 {[%clk 0:01:42]}  Qxe4 {[%clk 0:00:11]} 43. Rg5 {[%clk 0:01:41]}  Qxd5 {[%clk 0:00:10]} 44. Rxg7 {[%clk 0:01:36]}  Rxg7 {[%clk 0:00:11]} 45. Rc1 {[%clk 0:01:37]}  Qxg2# {[%clk 0:00:10]} 0-1


[Site "https://www.chess.com"]

[Event "Titled Tuesday Blitz May 24 Late 2022"]
[White "Mekhitarian, Krikor Sevag"]
[Black "Stevens, Christian"]
[WhiteFideId "2107660"]
[BlackFideId "2604450"]
[WhiteElo "2598"]
[BlackElo "2553"]
[Result "1-0"]
[Round "05"]
[TimeControl "180+1"]
[Date "2022.05.24"]
[WhiteClock "0:01:46"]
[BlackClock "0:00:02"]

1. d4 {[%clk 0:03:00]}  Nf6 {[%clk 0:01:36]} 2. Nf3 {[%clk 0:02:59]}  d5 {[%clk 0:01:35]} 3. g3 {[%clk 0:03:00]}  c6 {[%clk 0:01:34]} 4. Bg2 {[%clk 0:02:59]}  Bf5 {[%clk 0:01:34]} 5. c4 {[%clk 0:03:00]}  e6 {[%clk 0:01:32]} 6. Nc3 {[%clk 0:03:00]}  Nbd7 {[%clk 0:01:26]} 7. Nh4 {[%clk 0:03:00]}  Bg4 {[%clk 0:01:23]} 8. h3 {[%clk 0:03:00]}  Bh5 {[%clk 0:01:20]} 9. g4 {[%clk 0:03:01]}  Ng8 {[%clk 0:01:11]} 10. gxh5 {[%clk 0:02:32]}  Qxh4 {[%clk 0:01:09]} 11. Qb3 {[%clk 0:02:32]}  Rb8 {[%clk 0:01:06]} 12. e3 {[%clk 0:02:32]}  Ngf6 {[%clk 0:00:47]} 13. Bd2 {[%clk 0:02:22]}  Bd6 {[%clk 0:00:34]} 14. Bf3 {[%clk 0:02:18]}  O-O {[%clk 0:00:26]} 15. O-O-O {[%clk 0:02:16]}  Qxf2 {[%clk 0:00:23]} 16. Rdf1 {[%clk 0:02:15]}  Qh4 {[%clk 0:00:20]} 17. Qc2 {[%clk 0:02:15]}  Nxh5 {[%clk 0:00:16]} 18. Rhg1 {[%clk 0:02:08]}  Ng3 {[%clk 0:00:10]} 19. Rf2 {[%clk 0:02:08]}  Nf5 {[%clk 0:00:06]} 20. Rfg2 {[%clk 0:02:08]}  g6 {[%clk 0:00:04]} 21. Kb1 {[%clk 0:01:52]}  Nf6 {[%clk 0:00:03]} 22. Qd3 {[%clk 0:01:45]}  Rfe8 {[%clk 0:00:02]} 23. e4 {[%clk 0:01:45]}  dxe4 {[%clk 0:00:02]} 24. Bxe4 {[%clk 0:01:46]}  Nxe4 {[%clk 0:00:01]} 25. Nxe4 {[%clk 0:01:47]}  Bf4 {[%clk 0:00:01]} 26. Rg4 {[%clk 0:01:45]}  Bxd2 {[%clk 0:00:01]} 27. Rxh4 {[%clk 0:01:45]}  Nxh4 {[%clk 0:00:02]} 28. Nf6+ {[%clk 0:01:46]}  Kg7 {[%clk 0:00:01]} 29. Nxe8+ {[%clk 0:01:47]}  Rxe8 {[%clk 0:00:02]} 30. Qxd2 {[%clk 0:01:48]}  Nf3 {[%clk 0:00:01]} 31. Qe3 {[%clk 0:01:43]}  Nxg1 {[%clk 0:00:01]} 32. Qxg1 {[%clk 0:01:44]}  e5 {[%clk 0:00:01]} 33. d5 {[%clk 0:01:44]}  cxd5 {[%clk 0:00:01]} 34. cxd5 {[%clk 0:01:45]}  e4 {[%clk 0:00:01]} 35. Qd4+ {[%clk 0:01:45]}  Kg8 {[%clk 0:00:01]} 36. d6 {[%clk 0:01:46]}  e3 {[%clk 0:00:01]} 37. d7 {[%clk 0:01:46]}  Rd8 {[%clk 0:00:02]} 38. Qxe3 {[%clk 0:01:46]}  Kf8 {[%clk 0:00:02]} 39. Qc5+ {[%clk 0:01:46]} 1-0


[Site "https://www.chess.com"]